Cogmind - Beta 14 @@@ ROGUE MODE // 2024.10.02 @ 17:39:21 Player: Dazz Result: Destroyed by G-34 Mercenary with Small Laser Performance ------------- Evolutions (0) 0 Regions Visited (1) 200 Robots Destroyed (17) 85 Value Destroyed (442) 442 Prototype IDs (0) 0 Alien Tech Used (0) 0 Bonus (0) 0 TOTAL SCORE: 727 Bonus ------- None Cogmind --------- Core Integrity 0/250 Matter 190/300 Energy 125/125 System Corruption 0% Temperature Cool (6) Movement Hovering (180) Ox2 Location -10/Materials Parts ------- > --- POWER (1) -------- Light Ion Engine > --- PROPULSION (2) --- Hover Unit > --- UTILITY (2) ------ Small Storage Unit ECM Suite > --- WEAPON (2) ------- Grenade Launcher > --- INVENTORY (8) ---- Wheel Terrain Scanner ECM Suite ECM Suite Welding Torch Peak State ------------ > --- POWER ------------ Light Ion Engine > --- PROPULSION ------- Compact Wheel Compact Wheel > --- UTILITY ---------- Small Storage Unit Improved Terrain Scanner > --- WEAPON ----------- EM Pulse Gun EM Pulse Gun > --- INVENTORY -------- Ion Engine [Rating: 9] Favorites ----------- Power Light Ion Engine Engine Light Ion Engine Propulsion Compact Wheel Wheel Compact Wheel Hover Unit Hover Unit Utility Small Storage Unit Device Improved Terrain Scanner Storage Small Storage Unit Weapon EM Pulse Gun Energy Gun EM Pulse Gun Launcher Grenade Launcher Build | -11 -10 ------- Run | Yrd Mat Slots Evolved . | . . Power . | . . Propulsion . | . . Utility . | . . Weapon . | . . Parts Attached 13 | 7 6 Power 3 | 1 2 Engine 3 | 1 2 Core . | . . Reactor . | . . Propulsion 4 | 2 2 Treads . | . . Leg . | . . Wheel 2 | 2 . Hover 2 | . 2 Flight . | . . Utility 3 | 2 1 Device 2 | 1 1 Storage 1 | 1 . Processor . | . . Hackware . | . . Protection . | . . Artifact . | . . Weapon 3 | 2 1 Energy Gun 2 | 2 . Energy Cannon . | . . Ballistic Gun . | . . Ballistic Cannon . | . . Launcher 1 | . 1 Special Weapon . | . . Impact Weapon . | . . Slashing Weapon . | . . Piercing Weapon . | . . Special Melee Weapon . | . . Unidentified Prototypes . | . . Parts Lost 5 | . 5 Power . | . . Propulsion 3 | . 3 Utility 1 | . 1 Weapon 1 | . 1 Highest Loss Streak 2 | . 2 To Critical Strikes . | . . Average Slot Usage (%) 77 | . 77 Engine 14 | . 14 Wheel 17 | . 17 Hover 6 | . 6 Device 5 | . 5 Storage 14 | . 14 Energy Gun 13 | . 13 Launcher 4 | . 4 Peak Build Rating 9 | 9 9 Average Rating 5 | 3 5 On Entrance 4 | . 9 Naked Turns . | . . Heaviest Build 15 | 13 15 Greatest Support 32 | 32 32 Greatest Overweight (x) 4 | . 4 Average Overweight (x) . | . . Largest Inventory Capacity 8 | 8 8 Average Capacity 7 | 5 8 Most Carried 7 | 3 7 Average Carried 4 | 1 4 Final Capacity 8 | 8 8 Final Carried 5 | 2 5 Class Distribution -------------------- 100% | Mutant Dominant Class ---------------- Mutant | -10/Materials Resources | -11 -10 ----------- Run | Yrd Mat Matter Collected 320 | 181 139 Remotely . | . . Salvage Created 541 | 13 528 Parts 36 | 3 33 Haulers Intercepted . | . . Recyclers Shooed . | . . Parts Field Recycled . | . . Retrieved Matter . | . . Parts Self-Destructed . | . . Prevented . | . . Kills | -11 -10 ------- Run | Yrd Mat Combat Hostiles Destroyed 9 | . 9 Guns 3 | . 3 AOE 4 | . 4 Classes Destroyed 6 | 1 5 Worker 2 | . 2 Builder 2 | . 2 Tunneler 1 | 1 . Recycler 1 | . 1 Watcher 2 | . 2 Grunt 9 | . 9 Best Kill Streak 4 | 1 4 Combat Bots Only 3 | . 3 Max Kills in Single Turn 2 | 1 2 Gunslinging . | . . Exploded 2 | . 2 Melee . | . . Uniques/NPCs Destroyed . | . . Combat | -11 -10 -------- Run | Yrd Mat Hostile Shots Fired 46 | . 46 Missed 12 | . 12 Damage Taken 657 | . 657 Core 261 | . 261 Absorbed by Shields . | . . Core Remaining (%) 100 | 100 . Volleys Fired 46 | 1 45 Largest 2 | 2 2 Hottest 80 | 80 80 Shots Fired 63 | 2 61 Gun 52 | 2 50 Cannon . | . . Launcher 11 | . 11 Special . | . . Kinetic . | . . Thermal . | . . Explosive 11 | . 11 Electromagnetic 52 | 2 50 Robot Hit Streak 6 | 1 6 Robot Miss Streak 3 | 1 3 Penetration Max . | . . Secondary Targets . | . . Shots Hit Robots 37 | 1 36 Core Hits 25 | 1 24 Critical Kills . | . . Critical Parts Destroyed . | . . Critical Strikes 1 | . 1 Corrupt 1 | . 1 Melee Attacks . | . . Impact . | . . Slashing . | . . Piercing . | . . Sneak Attacks . | . . Combat Hostiles . | . . Follow-up Attacks . | . . Damage Inflicted 1130 | 25 1105 Guns 466 | 25 441 Cannons . | . . Explosions 664 | . 664 Melee . | . . Ramming . | . . Kinetic . | . . Thermal 141 | . 141 Explosive 523 | . 523 Electromagnetic 466 | 25 441 Impact . | . . Slashing . | . . Piercing . | . . Highest Corruption . | . . Average Corruption . | . . Corruption Purged . | . . Corruption Blocked . | . . Overload Shots . | . . Overflow Damage 43 | . 43 Projectiles . | . . Explosions 43 | . 43 Melee . | . . Knockbacks . | . . Impact . | . . Kinetic . | . . Secondary . | . . Self-Inflicted Damage 73 | . 73 Shots 3 | . 3 Rammed . | . . Targets Rammed . | . . Kicked . | . . Crushed . | . . Highest Temperature 183 | 18 183 Average Temperature 52 | 12 53 Received Heat Transfer 270 | . 270 Siege Activations . | . . Robots Corrupted 2 | . 2 Combat Hostiles 2 | . 2 Parts Fried 3 | . 3 Impact Corruptions . | . . Robots Melted . | . . Combat Hostiles . | . . Parts Melted . | . . Heat Transferred 150 | . 150 Parts Sabotaged . | . . Parts Stolen . | . . Parts Stripped . | . . Power Chain Reactions 2 | . 2 Alert | -11 -10 ------- Run | Yrd Mat Peak Influence 345 | 5 345 Initial 3 | . 3 Average 123 | . 135 Maximum Alert Level 1 | . 1 Low Security (%) 62 | 100 58 Level 1 37 | . 41 Level 2 . | . . Level 3 . | . . Level 4 . | . . Level 5 . | . . High Security . | . . Max Security . | . . Squads Dispatched 3 | . 3 Investigation 1 | . 1 Extermination . | . . Reinforcement 2 | . 2 Assault . | . . Garrison . | . . Intercept . | . . Searches Triggered . | . . Construction Impeded . | . . Haulers Reinforced . | . . Active Scanning Responses . | . . Cargo Convoy Interrupts . | . . Stealth | -11 -10 --------- Run | Yrd Mat Distress Signals . | . . Communications Jammed . | . . Distress Signals . | . . Times Spotted 17 | . 17 Peak Tracking Total 2 | . 2 Tactical Retreats 2 | . 2 Traps | -11 -10 ------- Run | Yrd Mat Traps Triggered 1 | . 1 Indirectly . | . . Trap Hack Attempts . | . . Triggered . | . . Disarmed . | . . Reprogrammed . | . . Reused . | . . Traps Extracted . | . . Installed . | . . Triggered . | . . Machines | -11 -10 ---------- Run | Yrd Mat Machines Disabled 4 | . 4 Max in Single Turn 1 | . 1 Machines Repaired . | . . Machines Dismantled . | . . Machines Sabotaged . | . . Overloaded Fab Kills . | . . Hacking | -11 -10 --------- Run | Yrd Mat Machines Accessed 6 | . 6 Terminals 6 | . 6 Fabricators . | . . Repair Stations . | . . Recycling Units . | . . Scanalyzers . | . . Garrison Access . | . . Total Hacks 22 | . 22 Successful 11 | . 11 Failed 11 | . 11 Catastrophic . | . . Database Lockouts . | . . Manual 21 | . 21 Terminals 22 | . 22 Fabricators . | . . Repair Stations . | . . Recycling Units . | . . Scanalyzers . | . . Garrison Access . | . . Terminal Hacks 3 | . 3 Record 2 | . 2 Terminal Index 1 | . 1 Fabricator Hacks . | . . Repair Station Hacks . | . . Recycling Unit Hacks . | . . Scanalyzer . | . . Garrison Access Hacks . | . . Unauthorized Hacks 8 | . 8 Terminals 8 | . 8 Track 1 | . 1 Botnet 1 | . 1 Skim 6 | . 6 Fabricators . | . . Repair Stations . | . . Recycling Units . | . . Scanalyzers . | . . Garrison Access . | . . Data Cores Recovered . | . . Used . | . . Hacking Detections 5 | . 5 Full Trace Events 2 | . 2 Feedback Events . | . . Feedback Blocked . | . . Robot Schematics Acquired . | . . Robots Built . | . . Authchips . | . . Time . | . . Total Robot Build Rating . | . . Part Schematics Acquired . | . . Parts Built . | . . Authchips . | . . Time . | . . Total Part Build Rating . | . . Parts Repaired . | . . Time . | . . Parts Recycled . | . . Recycled Matter . | . . Retrieved Matter . | . . Retrieved Components . | . . Parts Scanalyzed . | . . Part Schematics Acquired . | . . Parts Damaged . | . . Bothacking | -11 -10 ------------ Run | Yrd Mat Used RIF Installer . | . . Robots Hacked . | . . Non-combat . | . . Combat . | . . Robot Hacks Applied . | . . Relay Couplers Released . | . . Fabnet Peak Effective % . | . . Robots Rewired . | . . Allies Hacked . | . . Hacks Repelled . | . . Allies | -11 -10 -------- Run | Yrd Mat Total Allies . | . . Largest Group . | . . Highest-Rated Group . | . . Highest-Rated Ally . | . . Total Orders . | . . Ally Attacks . | . . Total Damage . | . . Kills . | . . Allies Corrupted . | . . Allies Melted . | . . Intel | -11 -10 ------- Run | Yrd Mat Robot Analysis Total . | . . Derelict Logs Recovered . | . . Drone Launches . | . . Drone Recoveries . | . . Exploration | -11 -10 ------------- Run | Yrd Mat Turns Passed 862 | 78 784 Spaces Moved 659 | 69 590 Core 40 | 18 22 Treads . | . . Legs . | . . Wheels 466 | 51 415 Hover 153 | . 153 Flight . | . . Fastest Speed 50 | 50 56 Average Speed 104 | 86 106 Slowest Speed 250 | 100 250 Overloaded Moves . | . . Propulsion Burnouts . | . . Robots Hopped . | . . Cave-ins Triggered . | . . Exploration Rate (%) 46 | 5 88 Regions Visited 1 Branch Regions . Pre-discovered Areas . | . . Known Exits Taken . | . . Unknown Exits Taken 1 | 1 . Scrap Searched . | . . Spaces Dug . | . . Terrain Destroyed 76 | . 76 Melee . | . . Projectile . | . . AOE 76 | . 76 Terrain Rammed . | . . Walls Destroyed . | . . Machines Disabled . | . . Actions | -11 -10 --------- Run | Yrd Mat Total 768 | 85 683 Wait 29 | . 29 Move 658 | 68 590 Hop . | . . Pick Up 18 | 9 9 Fast Attach . | . . Attach 11 | 7 4 Detach 1 | . 1 Swap 2 | . 2 Drop 3 | . 3 Fire 46 | 1 45 Melee . | . . Ram . | . . Kick . | . . Crush . | . . Escape Stasis . | . . Rewire . | . . Trap . | . . Miscellaneous . | . . Route ------- -11/Scrapyard -10/Materials (discovered 5 exits: [*Mat x3] / [*Min x2]) History --------- Turn | Location | Event 12 | -11/Scrapyard | Discovered new exit (range 15) 79 | -11/Scrapyard | Entered Materials 222 | -10/Materials | Discovered new exit (range 3) 300 | -10/Materials | Build established: Mutant 356 | -10/Materials | Discovered new exit (range 16) 559 | -10/Materials | Discovered new exit (range 6) 598 | -10/Materials | Core integrity fell below 50% 720 | -10/Materials | Discovered new exit (range 14) 753 | -10/Materials | Discovered new exit (range 13) 849 | -10/Materials | Core integrity fell below 20% 863 | -10/Materials | Destroyed by G-34 Mercenary with Small Laser Last Messages --------------- at those depths. 00834_ ALERT: Suspicious activity at Terminal M003. Dispatching Investigation squad. 00841_ U-05 Engineer lays Concrete. 00842_ Hover Unit destroyed. 00842_ U-05 Engineer lays Concrete. 00847_ K-01 Serf collects debris. 00848_ Fusion Modulator explodes. 00848_ G-34 Mercenary destroyed. 00848_ Terminal disabled. 00848_ U-05 Engineer lays Concrete. 00849_ T-07 Excavator is excavating. 00850_ U-05 Engineer lays Concrete. 00851_ K-01 Serf collects debris. 00852_ U-05 Engineer lays Concrete. 00853_ T-07 Excavator is excavating. 00854_ U-05 Engineer lays Concrete. 00855_ U-05 Engineer builds a Wall. 00855_ K-01 Serf collects debris. 00855_ U-05 Engineer lays Concrete. Map ----- +----------------------------------------------------+ | | | | | | | | | | | | | | | | | | | | | | | | | | | | | | | | | | | | | | | ?????????????????????????????????????????????????? | | ?????????????????????????????????????????????????? | | ?????????????????????????????????????????????##### | | ??????????????#######??????###???????????????# | | ????????????###;""""###??? #???????????????# """ | | ????????????#; ;;#### t #???????????????# """ | | ????????????#; ; @ #?????????????#### """ | | ?????????####; g;;## # #?????????????# # | | ?????????# ; " ## ####?????????????# # """ | | ?????????# < " " ## #???????#"""?????# + """ | | ?????????# " " ## #?????##"!!!"#???# # """ | | ?????????+ """""""" ## ##?? #"" ""???# # | | ?????????# %= #"# # ==# ???# # | | ##+####### = T + =!# < ???# # | | ### # # ????# # ! | | ####+####### ????# ##### | | !!# #?? ????# #???? | | """ """ ! # #??# #????# #???? | | """ "" % # #??# #????# #???? | | " "" # #??# #????# #???? | | + #??# #????# #???? | | = # #?## ##??## ##??? | | ##### ## #?# #### #??? | | ## ## #?# #??? | | " #####?#?### ############?# T #??? | | " #?????????# ########?????# #### #??? | | ^ #?????????# # #?????# #??##+###??? | | ########### # ] "#?#???## ## #?? ???? | | # """ # # T#??????# ## # ?? | | """ # """ # / "#??????# ## # "" """ | | """ # """ # # ########+## # "T """ | +----------------------------------------------------+ Best States ------------- Heat Dissipation 25 Energy Generation 10 Energy Capacity 250 Matter Stores 300 Matter Capacity 300 Sight Range 16 Terrain Scan Range 16 Terrain Scan Density 10 ECM Strength 1 Evasion (%) 53 Item Schematics ----------------- None Robot Schematics ------------------ None Fabricated ------------ Nothing Alien Tech Used ----------------- None Achievements -------------- root@ Challenges ------------ None Game ------ Seed CoolingMeleeStripper Manual? 0 Play Time 00:17:48 Cumulative 11.6 hours Start 2024.10.02 @ 17:24:22 End 2024.10.02 @ 17:39:21 Sessions 1 Manual Loads 0 Difficulty Rogue Special Mode None Game No. 30 Rogue 30 Adventurer 0 Explorer 0 Win Type - Total 0 Types 0/0/0/0/0/0/0/0/0 Lore% 11 Gallery% 10 Achievement% 14 Wizard Run 0 Options --------- Layout 1 ASCII 0 Keyboard 1 Movement Numpad Keybinds 0 Fullscreen 2 Font 32/SmallcapsGlow Map View 50x35 Zoom Use 0% Tactical HUD 1 Map Filters NONE Filters NONE Steam 1 RUN: 6c7e88be-afe6-457f-a80a-53d0e769bedd